{"text_format":"1","workbook":"xlsx","n_sheets":3,"sheets":["Data TBL","PVTBL","The CBE"],"not_rendered":{"charts":0,"images":0,"macros":1,"external_links":0,"defined_names":14,"comments":0,"pivot_tables":2},"unopened":[],"bounds":{"document_bytes":16777216,"sheet_cells":100000,"rows_first":2000,"rows_last":500,"rows_between":2000,"halvings":0,"cell_chars":16384,"cell_head_chars":4096},"cells_cut":0,"cells_raw":0,"read":"whole","date_system":"1900"}

{"sheet":"Data TBL","index":0,"n_rows":96,"n_cols":18,"rows_kept":96,"cut":false,"hidden":false,"merged":[]}
["MidLevel","MidTitle","DeptCode","DeptTitle","OrgnCode","OrgnTitle","NewIndex","NewIndexTitle","NewFund","FundLevel","FundLevelTitle","NewFundTitle","NewOrgn","NewOrgnTitle","NewProg","NewProgTitle","NewActv","NewActvTitle"]
["M004","College of Business & Economics",{"$f":"\"076\"","v":"076"},"College of Business & Economics","DAN525","Dean D. Thornton Faculty Fellowship",{"$f":"\"785961\"","v":"785961"},"Dean D. Thornton Faculty Fellowship",{"$f":"\"210513\"","v":"210513"},21,"Restricted Gifts","Dean D. Thornton Faculty Fellowship",{"$f":"\"785\"","v":"785"},"College of Business & Economics",{"$f":"\"09SCF\"","v":"09SCF"},"Scholarships & Fellowships",{"$f":"\"\"","v":""}]
["M004","College of Business & Economics","076","College of Business & Economics","DAN540","CBE - PUEC Faculty Development Fund",{"$f":"\"785960\"","v":"785960"},"CBE - PUEC Faculty Development Fund",{"$f":"\"210514\"","v":"210514"},21,"Restricted Gifts","CBE - PUEC Faculty Development Fund","785","College of Business & Economics",{"$f":"\"01UNA\"","v":"01UNA"},"Other Institutional Act & Unallow",{"$f":"\"\"","v":""}]
["M004","College of Business & Economics","076","College of Business & Economics","DAN050","First Security Fdn - Library",{"$f":"\"785991\"","v":"785991"},"First Security Fdn - Library",{"$f":"\"211105\"","v":"211105"},21,"Restricted Gifts","First Security Fdn - Library","785","College of Business & Economics",{"$f":"\"01INX\"","v":"01INX"},"Instruction",{"$f":"\"\"","v":""}]
["M004","College of Business & Economics","076","College of Business & Economics","DAN205","McCarthy Communication Lab",{"$f":"\"785989\"","v":"785989"},"McCarthy Communication Lab",{"$f":"\"210485\"","v":"210485"},21,"Restricted Gifts","McCarthy Communication Lab","785","College of Business & Economics",{"$f":"\"01INX\"","v":"01INX"},"Instruction",{"$f":"\"\"","v":""}]
["M004","College of Business & Economics","076","College of Business & Economics","DAN215","Davis, A. D. Awards",{"$f":"\"785987\"","v":"785987"},"Davis, A. D. Awards",{"$f":"\"210487\"","v":"210487"},21,"Restricted Gifts","Davis, A. D. Awards","785","College of Business & Economics",{"$f":"\"01UNA\"","v":"01UNA"},"Other Institutional Act & Unallow",{"$f":"\"\"","v":""}]
["M004","College of Business & Economics","076","College of Business & Economics","DAN275","Kendrick, David Memorial Award",{"$f":"\"785981\"","v":"785981"},"Kendrick, David Memorial Award",{"$f":"\"210493\"","v":"210493"},21,"Restricted Gifts","Kendrick, David Memorial Award","785","College of Business & Economics",{"$f":"\"01UNA\"","v":"01UNA"},"Other Institutional Act & Unallow",{"$f":"\"\"","v":""}]
["M004","College of Business & Economics","076","College of Business & Economics","DAN320","Smith Discretionary Fund",{"$f":"\"785975\"","v":"785975"},"Smith Discretionary Fund",{"$f":"\"210499\"","v":"210499"},21,"Restricted Gifts","Smith Discretionary Fund","785","College of Business & Economics",{"$f":"\"01UNA\"","v":"01UNA"},"Other Institutional Act & Unallow",{"$f":"\"\"","v":""}]
["M004","College of Business & Economics","076","College of Business & Economics","DAN333","McGowan B & E Discretion",{"$f":"\"785974\"","v":"785974"},"McGowan B & E Discretion",{"$f":"\"210500\"","v":"210500"},21,"Restricted Gifts","McGowan B & E Discretion","785","College of Business & Economics",{"$f":"\"01INX\"","v":"01INX"},"Instruction",{"$f":"\"\"","v":""}]
["M004","College of Business & Economics","076","College of Business & Economics","DAN350","First Security Bus & Econ",{"$f":"\"785972\"","v":"785972"},"First Security Bus & Econ",{"$f":"\"210502\"","v":"210502"},21,"Restricted Gifts","First Security Bus & Econ","785","College of Business & Economics",{"$f":"\"01INX\"","v":"01INX"},"Instruction",{"$f":"\"\"","v":""}]
["M004","College of Business & Economics","076","College of Business & Economics","DAN400","Bus & Econ Unrest Endow",{"$f":"\"785969\"","v":"785969"},"Bus & Econ Unrest Endow",{"$f":"\"210505\"","v":"210505"},21,"Restricted Gifts","Bus & Econ Unrest Endow","785","College of Business & Economics",{"$f":"\"01INX\"","v":"01INX"},"Instruction",{"$f":"\"\"","v":""}]
["M004","College of Business & Economics","076","College of Business & Economics","DAN420","Young Bus & Econ Education Fd",{"$f":"\"785968\"","v":"785968"},"Young Bus & Econ Education Fd",{"$f":"\"210506\"","v":"210506"},21,"Restricted Gifts","Young Bus & Econ Education Fd","785","College of Business & Economics",{"$f":"\"01INX\"","v":"01INX"},"Instruction",{"$f":"\"\"","v":""}]
["M004","College of Business & Economics","076","College of Business & Economics","DAN450","First Interstate Fac Dev Fund",{"$f":"\"785964\"","v":"785964"},"First Interstate Fac Dev Fund",{"$f":"\"210510\"","v":"210510"},21,"Restricted Gifts","First Interstate Fac Dev Fund","785","College of Business & Economics",{"$f":"\"01UNA\"","v":"01UNA"},"Other Institutional Act & Unallow",{"$f":"\"\"","v":""}]
["M004","College of Business & Economics","076","College of Business & Economics","DAN475","Graue Program Operating Acct",{"$f":"\"785963\"","v":"785963"},"Graue Program Operating Acct",{"$f":"\"210511\"","v":"210511"},21,"Restricted Gifts","Graue Program Operating Acct","785","College of Business & Economics",{"$f":"\"01INX\"","v":"01INX"},"Instruction",{"$f":"\"\"","v":""}]
["M004","College of Business & Economics","076","College of Business & Economics","DAY002","CBE-Big Y",{"$f":"\"785943\"","v":"785943"},"CBE-Big Y",{"$f":"\"120470\"","v":"120470"},12,"Local Service","CBE-Big Y","785","College of Business & Economics",{"$f":"\"01INX\"","v":"01INX"},"Instruction",{"$f":"\"\"","v":""}]
["M004","College of Business & Economics",{"$f":"\"078\"","v":"078"},"Accounting","DBN200","Unrestricted Gifts",{"$f":"\"860995\"","v":"860995"},"Unrestricted Gifts",{"$f":"\"210527\"","v":"210527"},21,"Restricted Gifts","Unrestricted Gifts - Accounting",{"$f":"\"860\"","v":"860"},"Accounting",{"$f":"\"01UNA\"","v":"01UNA"},"Other Institutional Act & Unallow",{"$f":"\"\"","v":""}]
["M004","College of Business & Economics",{"$f":"\"078\"","v":"078"},"Accounting","DBN350","Presnell Accounting Fund",{"$f":"\"860988\"","v":"860988"},"Presnell Accounting Fund",{"$f":"\"210534\"","v":"210534"},21,"Restricted Gifts","Presnell Accounting Fund",{"$f":"\"860\"","v":"860"},"Accounting",{"$f":"\"01UNA\"","v":"01UNA"},"Other Institutional Act & Unallow",{"$f":"\"\"","v":""}]
["M004","College of Business & Economics",{"$f":"\"079\"","v":"079"},"Business","DCN005","Business Development",{"$f":"\"889995\"","v":"889995"},"Business Development",{"$f":"\"210535\"","v":"210535"},21,"Restricted Gifts","Business Development",{"$f":"\"889\"","v":"889"},"Business",{"$f":"\"04ACS\"","v":"04ACS"},"All Academic Support except UNA",{"$f":"\"\"","v":""}]
["M004","College of Business & Economics",{"$f":"\"079\"","v":"079"},"Business","DCY001","Business Dept Misc",{"$f":"\"889991\"","v":"889991"},"Business Dept Misc",{"$f":"\"120476\"","v":"120476"},12,"Local Service","Business Dept Misc",{"$f":"\"889\"","v":"889"},"Business",{"$f":"\"01UNA\"","v":"01UNA"},"Other Institutional Act & Unallow",{"$f":"\"\"","v":""}]
["M004","College of Business & Economics",{"$f":"\"076\"","v":"076"},"College of Business & Economics","DAN375","CBE Dean's Student Advisory Board",{"$f":"\"785970\"","v":"785970"},"CBE Dean's Student Advisory Board",{"$f":"\"210504\"","v":"210504"},21,"Restricted Gifts","CBE Dean's Student Advisory Board",{"$f":"\"785\"","v":"785"},"College of Business & Economics",{"$f":"\"04ACS\"","v":"04ACS"},"All Academic Support except UNA",{"$f":"\"\"","v":""}]
["M004","College of Business & Economics","076","College of Business & Economics","DAN445","Davis Enrichment Fund",{"$f":"\"785965\"","v":"785965"},"Davis Enrichment Fund",{"$f":"\"210509\"","v":"210509"},21,"Restricted Gifts","Davis Enrichment Fund","785","College of Business & Economics",{"$f":"\"01UNA\"","v":"01UNA"},"Other Institutional Act & Unallow",{"$f":"\"\"","v":""}]
["M004","College of Business & Economics","076","College of Business & Economics","DAN425","Severn, Russell Discretionary Fund",{"$f":"\"785967\"","v":"785967"},"Severn, Russell Discretionary Fund",{"$f":"\"210507\"","v":"210507"},21,"Restricted Gifts","Severn, Russell Discretionary Fund","785","College of Business & Economics",{"$f":"\"01UNA\"","v":"01UNA"},"Other Institutional Act & Unallow",{"$f":"\"\"","v":""}]
["M004","College of Business & Economics","076","College of Business & Economics","DAN250","Bennett, Philo Prize",{"$f":"\"785984\"","v":"785984"},"Bennett, Philo Prize",{"$f":"\"210490\"","v":"210490"},21,"Restricted Gifts","Bennett, Philo Prize","785","College of Business & Economics",{"$f":"\"01UNA\"","v":"01UNA"},"Other Institutional Act & Unallow",{"$f":"\"\"","v":""}]
["M004","College of Business & Economics","076","College of Business & Economics","DAN015","Integrated Business Core Curriculum",{"$f":"\"785992\"","v":"785992"},"Integrated Business Core Curriculum",{"$f":"\"210483\"","v":"210483"},21,"Restricted Gifts","Integrated Business Core Curriculum","785","College of Business & Economics",{"$f":"\"01INX\"","v":"01INX"},"Instruction",{"$f":"\"\"","v":""}]
["M004","College of Business & Economics","076","College of Business & Economics","DAX001","Bus & Econ Administration",{"$f":"\"785949\"","v":"785949"},"Bus & Econ Administration",{"$f":"\"100000\"","v":"100000"},10,"General Education","General Education","785","College of Business & Economics",{"$f":"\"04DAX\"","v":"04DAX"},"Departmental Administration",{"$f":"\"\"","v":""}]
["M004","College of Business & Economics",{"$f":"\"078\"","v":"078"},"Accounting","DBN010","Steele Accounting Professorship",{"$f":"\"860997\"","v":"860997"},"Steele Accounting Professorship",{"$f":"\"210525\"","v":"210525"},21,"Restricted Gifts","Steele Accounting Professorship",{"$f":"\"860\"","v":"860"},"Accounting",{"$f":"\"01UNA\"","v":"01UNA"},"Other Institutional Act & Unallow",{"$f":"\"\"","v":""}]
["M004","College of Business & Economics",{"$f":"\"078\"","v":"078"},"Accounting","DBY005","Independent Study Crse",{"$f":"\"860986\"","v":"860986"},"Independent Study Crse",{"$f":"\"121466\"","v":"121466"},12,"Local Service","Independent Study Crse",{"$f":"\"860\"","v":"860"},"Accounting",{"$f":"\"01INX\"","v":"01INX"},"Instruction",{"$f":"\"\"","v":""}]
["M004","College of Business & Economics",{"$f":"\"076\"","v":"076"},"College of Business & Economics","DAY040","Stover's Deli",{"$f":"\"785942\"","v":"785942"},"Stover's Deli",{"$f":"\"120469\"","v":"120469"},12,"Local Service","Stover's Deli",{"$f":"\"785\"","v":"785"},"College of Business & Economics",{"$f":"\"10AXX\"","v":"10AXX"},"Auxiliary Enterprises",{"$f":"\"\"","v":""}]
["M004","College of Business & Economics",{"$f":"\"076\"","v":"076"},"College of Business & Economics","DAX900","Bus & Econ Salary Reserve",{"$f":"\"785944\"","v":"785944"},"CBE Salary Reserve",{"$f":"\"100000\"","v":"100000"},10,"General Education","General Education",{"$f":"\"785\"","v":"785"},"College of Business & Economics",{"$f":"\"01INX\"","v":"01INX"},"Instruction",{"$f":"\"785ADM\"","v":"785ADM"},"Departmental Administration"]
["M004","College of Business & Economics",{"$f":"\"076\"","v":"076"},"College of Business & Economics","DAN480","Hawkins CBE Faculty Enhancement",{"$f":"\"785962\"","v":"785962"},"Hawkins CBE Faculty Enhancement",{"$f":"\"210512\"","v":"210512"},21,"Restricted Gifts","Hawkins CBE Faculty Enhancement",{"$f":"\"785\"","v":"785"},"College of Business & Economics",{"$f":"\"07GAX\"","v":"07GAX"},"General Administration",{"$f":"\"\"","v":""}]
["M004","College of Business & Economics",{"$f":"\"076\"","v":"076"},"College of Business & Economics","DAN340","Monnett Intl Business Fund",{"$f":"\"785973\"","v":"785973"},"Monnett Intl Business Fund",{"$f":"\"210501\"","v":"210501"},21,"Restricted Gifts","Monnett Intl Business Fund",{"$f":"\"785\"","v":"785"},"College of Business & Economics",{"$f":"\"01UNA\"","v":"01UNA"},"Other Institutional Act & Unallow",{"$f":"\"\"","v":""}]
["M004","College of Business & Economics",{"$f":"\"079\"","v":"079"},"Business","DCY005","Vandal Solutions",{"$f":"\"889990\"","v":"889990"},"Vandal Solutions",{"$f":"\"120473\"","v":"120473"},12,"Local Service","Vandal Solutions",{"$f":"\"889\"","v":"889"},"Business",{"$f":"\"01INX\"","v":"01INX"},"Instruction",{"$f":"\"\"","v":""}]
["M004","College of Business & Economics",{"$f":"\"076\"","v":"076"},"College of Business & Economics","DAN011","Alsaker Family Fellowship",{"$f":"\"785993\"","v":"785993"},"Alsaker Family Fellowship",{"$f":"\"210482\"","v":"210482"},21,"Restricted Gifts","Alsaker Family Fellowship",{"$f":"\"785\"","v":"785"},"College of Business & Economics",{"$f":"\"09SCF\"","v":"09SCF"},"Scholarships & Fellowships",{"$f":"\"\"","v":""}]
["M004","College of Business & Economics",{"$f":"\"078\"","v":"078"},"Accounting","DBN220","Acct Advisory Board Fellowship",{"$f":"\"860994\"","v":"860994"},"Acct Advisory Board Fellowship",{"$f":"\"210528\"","v":"210528"},21,"Restricted Gifts","Acct Advisory Board Fellowship",{"$f":"\"860\"","v":"860"},"Accounting",{"$f":"\"09SCF\"","v":"09SCF"},"Scholarships & Fellowships",{"$f":"\"\"","v":""}]
["M004","College of Business & Economics",{"$f":"\"076\"","v":"076"},"College of Business & Economics","DAN230","CBE Development Fund",{"$f":"\"785986\"","v":"785986"},"CBE Development Fund",{"$f":"\"210488\"","v":"210488"},21,"Restricted Gifts","CBE Development Fund",{"$f":"\"785\"","v":"785"},"College of Business & Economics",{"$f":"\"01INX\"","v":"01INX"},"Instruction",{"$f":"\"\"","v":""}]
["M004","College of Business & Economics",{"$f":"\"078\"","v":"078"},"Accounting","DBN240","Allen Faculty Supplement- Acct",{"$f":"\"860992\"","v":"860992"},"Allen Faculty Supplement- Acct",{"$f":"\"210530\"","v":"210530"},21,"Restricted Gifts","Allen Faculty Supplement- Acct",{"$f":"\"860\"","v":"860"},"Accounting",{"$f":"\"07GAX\"","v":"07GAX"},"General Administration",{"$f":"\"\"","v":""}]
["M004","College of Business & Economics",{"$f":"\"079\"","v":"079"},"Business","DCN250","Dept of Bus Endowment Earnings",{"$f":"\"889993\"","v":"889993"},"Dept of Bus Endowment Earnings",{"$f":"\"210538\"","v":"210538"},21,"Restricted Gifts","Dept of Bus Endowment Earnings",{"$f":"\"889\"","v":"889"},"Business",{"$f":"\"01UNA\"","v":"01UNA"},"Other Institutional Act & Unallow",{"$f":"\"\"","v":""}]
["M004","College of Business & Economics",{"$f":"\"076\"","v":"076"},"College of Business & Economics","DAN240","CBE Entrepreneurship Fund - Kluth",{"$f":"\"785985\"","v":"785985"},"CBE Entrepreneurship Fund - Kluth",{"$f":"\"210489\"","v":"210489"},21,"Restricted Gifts","CBE Entrepreneurship Fund - Kluth",{"$f":"\"785\"","v":"785"},"College of Business & Economics",{"$f":"\"01INX\"","v":"01INX"},"Instruction",{"$f":"\"\"","v":""}]
["M004","College of Business & Economics",{"$f":"\"076\"","v":"076"},"College of Business & Economics","DAY999","Soft Salary Gap",{"$f":"\"785941\"","v":"785941"},"Soft Salary Gap",{"$f":"\"120017\"","v":"120017"},12,"Local Service","Soft Salary Gap CEB",{"$f":"\"785\"","v":"785"},"College of Business & Economics",{"$f":"\"01INX\"","v":"01INX"},"Instruction",{"$f":"\"\"","v":""}]
["M004","College of Business & Economics",{"$f":"\"079\"","v":"079"},"Business","DCX004","Business",{"$f":"\"889992\"","v":"889992"},"Business",{"$f":"\"100000\"","v":"100000"},10,"General Education","General Education",{"$f":"\"889\"","v":"889"},"Business",{"$f":"\"01INX\"","v":"01INX"},"Instruction",{"$f":"\"\"","v":""}]
["M004","College of Business & Economics",{"$f":"\"687\"","v":"687"},"Executive Education","DEY005","Public Utilities Executive Course",{"$f":"\"823997\"","v":"823997"},"Public Utilities Executive Course",{"$f":"\"120477\"","v":"120477"},12,"Local Service","Public Utilities Executive Course",{"$f":"\"823\"","v":"823"},"Executive Education",{"$f":"\"01INX\"","v":"01INX"},"Instruction",{"$f":"\"\"","v":""}]
["M004","College of Business & Economics",{"$f":"\"076\"","v":"076"},"College of Business & Economics","DAN270","VIEW Program",{"$f":"\"785982\"","v":"785982"},"VIEW Program",{"$f":"\"210492\"","v":"210492"},21,"Restricted Gifts","VIEW Program",{"$f":"\"785\"","v":"785"},"College of Business & Economics",{"$f":"\"03PSO\"","v":"03PSO"},"Public Service On Campus",{"$f":"\"\"","v":""}]
["M004","College of Business & Economics",{"$f":"\"078\"","v":"078"},"Accounting","DBN190","Acct - Beta Alpha Psi",{"$f":"\"860996\"","v":"860996"},"Acct - Beta Alpha Psi",{"$f":"\"210526\"","v":"210526"},21,"Restricted Gifts","Acct - Beta Alpha Psi",{"$f":"\"860\"","v":"860"},"Accounting",{"$f":"\"06SSX\"","v":"06SSX"},"Student Services",{"$f":"\"\"","v":""}]
["M004","College of Business & Economics",{"$f":"\"079\"","v":"079"},"Business","DCN230","Process Mgmt & Improvement Center",{"$f":"\"889994\"","v":"889994"},"Process Mgmt & Improvement Center",{"$f":"\"210537\"","v":"210537"},21,"Restricted Gifts","Process Mgmt & Improvement Center",{"$f":"\"889\"","v":"889"},"Business",{"$f":"\"01INX\"","v":"01INX"},"Instruction",{"$f":"\"\"","v":""}]
["M004","College of Business & Economics",{"$f":"\"076\"","v":"076"},"College of Business & Economics","DAN310","Small Business Projects",{"$f":"\"785976\"","v":"785976"},"Small Business Projects",{"$f":"\"210498\"","v":"210498"},21,"Restricted Gifts","Small Business Projects",{"$f":"\"785\"","v":"785"},"College of Business & Economics",{"$f":"\"04ACS\"","v":"04ACS"},"All Academic Support except UNA",{"$f":"\"\"","v":""}]
["M004","College of Business & Economics",{"$f":"\"076\"","v":"076"},"College of Business & Economics","DAN550","Barker Capital Mgmt & Trading Prog",{"$f":"\"785959\"","v":"785959"},"Barker Capital Mgmt & Trading Prog",{"$f":"\"210515\"","v":"210515"},21,"Restricted Gifts","Barker Capital Mgmt & Trading Prog",{"$f":"\"785\"","v":"785"},"College of Business & Economics",{"$f":"\"01INX\"","v":"01INX"},"Instruction",{"$f":"\"\"","v":""}]
["M004","College of Business & Economics",{"$f":"\"076\"","v":"076"},"College of Business & Economics","DAN291","Cd'A Mines Faculty Fellowship",{"$f":"\"785978\"","v":"785978"},"Cd'A Mines Faculty Fellowship",{"$f":"\"210496\"","v":"210496"},21,"Restricted Gifts","Cd'A Mines Faculty Fellowship",{"$f":"\"785\"","v":"785"},"College of Business & Economics","01INX","Instruction",{"$f":"\"\"","v":""}]
["M004","College of Business & Economics",{"$f":"\"078\"","v":"078"},"Accounting","DB7003","Accounting Operating",{"$f":"\"860999\"","v":"860999"},"Accounting Operating",{"$f":"\"160114\"","v":"160114"},16,"Student Fees","Accounting Operating",{"$f":"\"860\"","v":"860"},"Accounting","01INX","Instruction",{"$f":"\"\"","v":""}]
["M004","College of Business & Economics",{"$f":"\"079\"","v":"079"},"Business","DC7013","Business Operating",{"$f":"\"889999\"","v":"889999"},"Business Operating",{"$f":"\"160117\"","v":"160117"},16,"Student Fees","Business Operating",{"$f":"\"889\"","v":"889"},"Business","01INX","Instruction",{"$f":"\"\"","v":""}]
["M004","College of Business & Economics",{"$f":"\"076\"","v":"076"},"College of Business & Economics","DA7001","Bus & Econ Admin General Support",{"$f":"\"785998\"","v":"785998"},"Bus & Econ Admin General Support",{"$f":"\"160110\"","v":"160110"},16,"Student Fees","Bus & Econ Admin General Support",{"$f":"\"785\"","v":"785"},"College of Business & Economics","01INX","Instruction",{"$f":"\"\"","v":""}]
["M004","College of Business & Economics",{"$f":"\"076\"","v":"076"},"College of Business & Economics","DA7013","Advising Operating",{"$f":"\"785997\"","v":"785997"},"Advising Operating",{"$f":"\"160111\"","v":"160111"},16,"Student Fees","Advising Operating",{"$f":"\"785\"","v":"785"},"College of Business & Economics","01INX","Instruction",{"$f":"\"\"","v":""}]
["M004","College of Business & Economics",{"$f":"\"076\"","v":"076"},"College of Business & Economics","DA7014","Infrastructure, Supplies, Tech Exp",{"$f":"\"785996\"","v":"785996"},"Infrastructure, Supplies, Tech Exp",{"$f":"\"160112\"","v":"160112"},16,"Student Fees","Infrastructure, Supplies, Tech Exp",{"$f":"\"785\"","v":"785"},"College of Business & Economics",{"$f":"\"04ACS\"","v":"04ACS"},"All Academic Support except UNA",{"$f":"\"\"","v":""}]
["M004","College of Business & Economics",{"$f":"\"076\"","v":"076"},"College of Business & Economics","DAN290","Espe Family Faculty Fellowship",{"$f":"\"785979\"","v":"785979"},"Espe Family Faculty Fellowship",{"$f":"\"210495\"","v":"210495"},21,"Restricted Gifts","Espe Family Faculty Fellowship",{"$f":"\"785\"","v":"785"},"College of Business & Economics",{"$f":"\"09SCF\"","v":"09SCF"},"Scholarships & Fellowships",{"$f":"\"\"","v":""}]
["M004","College of Business & Economics",{"$f":"\"076\"","v":"076"},"College of Business & Economics","DAN295","Stoddard Dist Research Scholar",{"$f":"\"785977\"","v":"785977"},"Stoddard Dist Research Scholar",{"$f":"\"210497\"","v":"210497"},21,"Restricted Gifts","Stoddard Dist Research Scholar",{"$f":"\"785\"","v":"785"},"College of Business & Economics",{"$f":"\"01DRO\"","v":"01DRO"},"Departmental Research On Campus",{"$f":"\"\"","v":""}]
["M004","College of Business & Economics",{"$f":"\"078\"","v":"078"},"Accounting","DBN250","Moss Adams Accounting Faculty Fello",{"$f":"\"860991\"","v":"860991"},"Moss Adams Accounting Faculty Fello",{"$f":"\"210531\"","v":"210531"},21,"Restricted Gifts","Moss Adams Accounting Faculty Fello",{"$f":"\"860\"","v":"860"},"Accounting",{"$f":"\"01INX\"","v":"01INX"},"Instruction",{"$f":"\"\"","v":""}]
["M004","College of Business & Economics",{"$f":"\"076\"","v":"076"},"College of Business & Economics","DA7160","CBEStudentCourseFees",{"$f":"\"785995\"","v":"785995"},"CBEStudentCourseFees",{"$f":"\"160113\"","v":"160113"},16,"Student Fees","CBE Student Course Fees",{"$f":"\"785\"","v":"785"},"College of Business & Economics",{"$f":"\"01INX\"","v":"01INX"},"Instruction",{"$f":"\"\"","v":""}]
["M004","College of Business & Economics",{"$f":"\"078\"","v":"078"},"Accounting","DB8020","AcctngLab&CrseFee",{"$f":"\"860998\"","v":"860998"},"Accounting Lab and Course Fee",{"$f":"\"160440\"","v":"160440"},16,"Student Fees","Acctng Lab & Crse Fee",{"$f":"\"860\"","v":"860"},"Accounting",{"$f":"\"01INX\"","v":"01INX"},"Instruction",{"$f":"\"\"","v":""}]
["M004","College of Business & Economics",{"$f":"\"079\"","v":"079"},"Business","DCY015","OM Experiential Learning",{"$f":"\"889988\"","v":"889988"},"OM Experiential Learning",{"$f":"\"120474\"","v":"120474"},12,"Local Service","OM Experiential Learning",{"$f":"\"889\"","v":"889"},"Business",{"$f":"\"01INX\"","v":"01INX"},"Instruction",{"$f":"\"\"","v":""}]
["M004","College of Business & Economics",{"$f":"\"076\"","v":"076"},"College of Business & Economics","DAN360","Elg, Annette & Brad Barker Endow",{"$f":"\"785971\"","v":"785971"},"Elg, Annette & Brad Barker Endow",{"$f":"\"210503\"","v":"210503"},21,"Restricted Gifts","Elg, Annette & Brad Barker Endow",{"$f":"\"785\"","v":"785"},"College of Business & Economics",{"$f":"\"01INX\"","v":"01INX"},"Instruction",{"$f":"\"\"","v":""}]
["M004","College of Business & Economics","076","College of Business & Economics","DAN560","Thiessen Fellow. Research Excel.",{"$f":"\"785958\"","v":"785958"},"Thiessen Fellow. Research Excel.",{"$f":"\"210516\"","v":"210516"},21,"Restricted Gifts","Thiessen Fellow. Research Excel.","785","College of Business & Economics",{"$f":"\"09SCF\"","v":"09SCF"},"Scholarships & Fellowships",{"$f":"\"\"","v":""}]
["M004","College of Business & Economics","076","College of Business & Economics","DAN565","Reyes, Mario Faculty Fellowship End",{"$f":"\"785957\"","v":"785957"},"Reyes, Mario Faculty Fellowship End",{"$f":"\"210517\"","v":"210517"},21,"Restricted Gifts","Reyes, Mario Faculty Fellowship End","785","College of Business & Economics",{"$f":"\"09SCF\"","v":"09SCF"},"Scholarships & Fellowships",{"$f":"\"\"","v":""}]
["M004","College of Business & Economics","076","College of Business & Economics","DAN575","Michael, Gary & Meryle Kay Fac Fell",{"$f":"\"785955\"","v":"785955"},"Michael, Gary & Meryle Kay Fac Fell",{"$f":"\"210519\"","v":"210519"},21,"Restricted Gifts","Michael, Gary & Meryle Kay Fac Fell","785","College of Business & Economics",{"$f":"\"01INX\"","v":"01INX"},"Instruction",{"$f":"\"\"","v":""}]
["M004","College of Business & Economics","076","College of Business & Economics","DAN580","VIEW Entrepreneurship Prog Gap Fund",{"$f":"\"785954\"","v":"785954"},"VIEW Entrepreneurship Prog Gap Fund",{"$f":"\"210520\"","v":"210520"},21,"Restricted Gifts","VIEW Entrepreneurship Prog Gap Fund","785","College of Business & Economics",{"$f":"\"01INX\"","v":"01INX"},"Instruction",{"$f":"\"\"","v":""}]
["M004","College of Business & Economics","076","College of Business & Economics","DAN570","CBE - Allen/Deloitte",{"$f":"\"785956\"","v":"785956"},"CBE - Allen/Deloitte",{"$f":"\"210518\"","v":"210518"},21,"Restricted Gifts","CBE - Allen/Deloitte","785","College of Business & Economics",{"$f":"\"01INX\"","v":"01INX"},"Instruction",{"$f":"\"\"","v":""}]
["M004","College of Business & Economics","076","College of Business & Economics","DAN590","CBE Junior Faculty Fellowship",{"$f":"\"785952\"","v":"785952"},"CBE Junior Faculty Fellowship",{"$f":"\"210522\"","v":"210522"},21,"Restricted Gifts","CBE Junior Faculty Fellowship","785","College of Business & Economics",{"$f":"\"09SCF\"","v":"09SCF"},"Scholarships & Fellowships",{"$f":"\"\"","v":""}]
["M004","College of Business & Economics",{"$f":"\"077\"","v":"077"},"Professional Golf Mgmt (PGM)","DCY010","Prof Golf Mgmt (PGM) Operating",{"$f":"\"836994\"","v":"836994"},"Prof Golf Mgmt (PGM) Operating",{"$f":"\"120472\"","v":"120472"},12,"Local Service","Prof Golf Mgmt (PGM) Operating",{"$f":"\"836\"","v":"836"},"Professional Golf Mgmt (PGM)",{"$f":"\"01INX\"","v":"01INX"},"Instruction",{"$f":"\"\"","v":""}]
["M004","College of Business & Economics",{"$f":"\"077\"","v":"077"},"Professional Golf Mgmt (PGM)","DCY004","Professional Golf Mgmt (PGM)",{"$f":"\"836995\"","v":"836995"},"Professional Golf Mgmt (PGM)",{"$f":"\"120475\"","v":"120475"},12,"Local Service","Professional Golf Mgmt (PGM)",{"$f":"\"836\"","v":"836"},"Professional Golf Mgmt (PGM)",{"$f":"\"01INX\"","v":"01INX"},"Instruction",{"$f":"\"\"","v":""}]
["M004","College of Business & Economics",{"$f":"\"077\"","v":"077"},"Professional Golf Mgmt (PGM)","DCX010","Professional Golf Mgmt (PGM)",{"$f":"\"836996\"","v":"836996"},"Professional Golf Mgmt (PGM)",{"$f":"\"100000\"","v":"100000"},10,"General Education","General Education",{"$f":"\"836\"","v":"836"},"Professional Golf Mgmt (PGM)",{"$f":"\"01INX\"","v":"01INX"},"Instruction",{"$f":"\"\"","v":""}]
["M004","College of Business & Economics",{"$f":"\"079\"","v":"079"},"Business","DD8160","Econ272On-lineTextFee",{"$f":"\"889987\"","v":"889987"},"Econ272On-lineTextFee",{"$f":"\"160444\"","v":"160444"},16,"Student Fees","Econ 272 On-line Text Fee",{"$f":"\"889\"","v":"889"},"Business",{"$f":"\"01INX\"","v":"01INX"},"Instruction",{"$f":"\"\"","v":""}]
["M004","College of Business & Economics",{"$f":"\"079\"","v":"079"},"Business","DCK801","Multiple: Metlen Student Educ Act",{"$f":"\"889997\"","v":"889997"},"Multiple: Metlen Student Educ Act",{"$f":"\"220505\"","v":"220505"},22,"Sponsored Programs","Multiple: Metlen Student Educ Act",{"$f":"\"889\"","v":"889"},"Business",{"$f":"\"01IGO\"","v":"01IGO"},"Instruction Grants On Campus",{"$f":"\"\"","v":""}]
["M004","College of Business & Economics",{"$f":"\"076\"","v":"076"},"College of Business & Economics","MKX076","Business & Economics Summer Session",{"$f":"\"785940\"","v":"785940"},"Business & Economics Summer Session",{"$f":"\"100000\"","v":"100000"},10,"General Education","General Education",{"$f":"\"785\"","v":"785"},"College of Business & Economics",{"$f":"\"01INX\"","v":"01INX"},"Instruction",{"$f":"\"785SUM\"","v":"785SUM"},"Business & Economics Summer Session"]
["M004","College of Business & Economics",{"$f":"\"079\"","v":"079"},"Business","DCK800","Micron S&OP Process - SEA BUS456",{"$f":"\"889998\"","v":"889998"},"Micron S&OP Process - SEA BUS456",{"$f":"\"220378\"","v":"220378"},22,"Sponsored Programs","Micron - SEA BUS456",{"$f":"\"889\"","v":"889"},"Business",{"$f":"\"01IGO\"","v":"01IGO"},"Instruction Grants On Campus",{"$f":"\"\"","v":""}]
["M004","College of Business & Economics",{"$f":"\"078\"","v":"078"},"Accounting","DBN260","Nelson, Ann & Dale Acct Fellowship",{"$f":"\"860989\"","v":"860989"},"Nelson, Ann & Dale Acct Fellowship",{"$f":"\"210533\"","v":"210533"},21,"Restricted Gifts","Nelson, Ann & Dale Acct Fellowship",{"$f":"\"860\"","v":"860"},"Accounting",{"$f":"\"01INX\"","v":"01INX"},"Instruction",{"$f":"\"\"","v":""}]
["M004","College of Business & Economics",{"$f":"\"076\"","v":"076"},"College of Business & Economics","DA8002","Strategic Management",{"$f":"\"785994\"","v":"785994"},"Strategic Management",{"$f":"\"160439\"","v":"160439"},16,"Student Fees","Strategic Management",{"$f":"\"785\"","v":"785"},"College of Business & Economics",{"$f":"\"01INX\"","v":"01INX"},"Instruction",{"$f":"\"\"","v":""}]
["M004","College of Business & Economics",{"$f":"\"076\"","v":"076"},"College of Business & Economics","DAX015","Business - General Instr Support",{"$f":"\"785947\"","v":"785947"},"Business - General Instr Support",{"$f":"\"100000\"","v":"100000"},10,"General Education","General Education",{"$f":"\"785\"","v":"785"},"College of Business & Economics",{"$f":"\"01INX\"","v":"01INX"},"Instruction",{"$f":"\"785GIS\"","v":"785GIS"},"Business - General Instr Support"]
["M004","College of Business & Economics",{"$f":"\"079\"","v":"079"},"Business","DCY006","CASE Editorship Acct",{"$f":"\"889989\"","v":"889989"},"CASE Editorship Acct",{"$f":"\"120471\"","v":"120471"},12,"Local Service","CASE Editorship Acct",{"$f":"\"889\"","v":"889"},"Business",{"$f":"\"01DRF\"","v":"01DRF"},"Departmental Research Off Campus",{"$f":"\"\"","v":""}]
["M004","College of Business & Economics",{"$f":"\"079\"","v":"079"},"Business","DCK817","IDHW SHIP project",{"$f":"\"889996\"","v":"889996"},"IDHW SHIP project",{"$f":"\"221078\"","v":"221078"},22,"Sponsored Programs","IDHW SHIP project",{"$f":"\"889\"","v":"889"},"Business",{"$f":"\"02ORF\"","v":"02ORF"},"Organized Research Off Campus",{"$f":"\"\"","v":""}]
["M004","College of Business & Economics",{"$f":"\"687\"","v":"687"},"Executive Education","DC7008","Executive MBA",{"$f":"\"823999\"","v":"823999"},"Executive MBA",{"$f":"\"160115\"","v":"160115"},16,"Student Fees","Executive MBA",{"$f":"\"823\"","v":"823"},"Executive Education",{"$f":"\"01INX\"","v":"01INX"},"Instruction",{"$f":"\"\"","v":""}]
["M004","College of Business & Economics",{"$f":"\"076\"","v":"076"},"College of Business & Economics","DAX004","*I* CBE Dean Search",{"$f":"\"785948\"","v":"785948"},"CBE Dean Search",{"$f":"\"100000\"","v":"100000"},10,"General Education","General Education",{"$f":"\"785\"","v":"785"},"College of Business & Economics",{"$f":"\"04DAX\"","v":"04DAX"},"Departmental Administration",{"$f":"\"785DNS\"","v":"785DNS"},"CBE Dean Search"]
["M004","College of Business & Economics",{"$f":"\"078\"","v":"078"},"Accounting","DBX003","Accounting",{"$f":"\"860987\"","v":"860987"},"Accounting",{"$f":"\"100000\"","v":"100000"},10,"General Education","General Education",{"$f":"\"860\"","v":"860"},"Accounting",{"$f":"\"01INX\"","v":"01INX"},"Instruction",{"$f":"\"\"","v":""}]
["M004","College of Business & Economics",{"$f":"\"076\"","v":"076"},"College of Business & Economics","DAN430","Slade Discretionary Fund-CBE",{"$f":"\"785966\"","v":"785966"},"Slade Discretionary Fund-CBE",{"$f":"\"210508\"","v":"210508"},21,"Restricted Gifts","Slade Discretionary Fund-CBE",{"$f":"\"785\"","v":"785"},"College of Business & Economics",{"$f":"\"01UNA\"","v":"01UNA"},"Other Institutional Act & Unallow",{"$f":"\"\"","v":""}]
["M004","College of Business & Economics",{"$f":"\"076\"","v":"076"},"College of Business & Economics","DAN200","Unrestricted Gifts-Bus & Econ",{"$f":"\"785990\"","v":"785990"},"Unrestricted Gifts-Bus & Econ",{"$f":"\"210484\"","v":"210484"},21,"Restricted Gifts","Unrestricted Gifts-Bus & Econ",{"$f":"\"785\"","v":"785"},"College of Business & Economics",{"$f":"\"01UNA\"","v":"01UNA"},"Other Institutional Act & Unallow",{"$f":"\"\"","v":""}]
["M004","College of Business & Economics",{"$f":"\"076\"","v":"076"},"College of Business & Economics","DAN210","Chair in Business Enterprise",{"$f":"\"785988\"","v":"785988"},"Chair in Business Enterprise",{"$f":"\"210486\"","v":"210486"},21,"Restricted Gifts","Chair in Business Enterprise",{"$f":"\"785\"","v":"785"},"College of Business & Economics",{"$f":"\"01INX\"","v":"01INX"},"Instruction",{"$f":"\"\"","v":""}]
["M004","College of Business & Economics",{"$f":"\"687\"","v":"687"},"Executive Education","DEX013","Ctr for Bus Dev & Entrepreneurship",{"$f":"\"823998\"","v":"823998"},"Ctr for Bus Dev & Entrepreneurship",{"$f":"\"100000\"","v":"100000"},10,"General Education","General Education",{"$f":"\"823\"","v":"823"},"Executive Education",{"$f":"\"03PSO\"","v":"03PSO"},"Public Service On Campus",{"$f":"\"\"","v":""}]
["M004","College of Business & Economics",{"$f":"\"076\"","v":"076"},"College of Business & Economics","DAN585","CBE Building Fund",{"$f":"\"785953\"","v":"785953"},"CBE Building Fund",{"$f":"\"210521\"","v":"210521"},21,"Restricted Gifts","CBE Building Fund",{"$f":"\"785\"","v":"785"},"College of Business & Economics",{"$f":"\"01UNA\"","v":"01UNA"},"Other Institutional Act & Unallow",{"$f":"\"\"","v":""}]
["M004","College of Business & Economics",{"$f":"\"076\"","v":"076"},"College of Business & Economics","DA6300","Bus&EconEarnedOverhead",{"$f":"\"785999\"","v":"785999"},"Bus&EconEarnedOverhead",{"$f":"\"121235\"","v":"121235"},12,"Local Service","F&A Return - Bus & Econ",{"$f":"\"785\"","v":"785"},"College of Business & Economics",{"$f":"\"01DRO\"","v":"01DRO"},"Departmental Research On Campus",{"$f":"\"\"","v":""}]
["M004","College of Business & Economics",{"$f":"\"077\"","v":"077"},"Professional Golf Mgmt (PGM)","DCN015","PGA Golf Management Program Gifts",{"$f":"\"836997\"","v":"836997"},"PGA Golf Management Program Gifts",{"$f":"\"210536\"","v":"210536"},21,"Restricted Gifts","PGA Golf Management Program",{"$f":"\"836\"","v":"836"},"Professional Golf Mgmt (PGM)",{"$f":"\"01INX\"","v":"01INX"},"Instruction",{"$f":"\"\"","v":""}]
["M004","College of Business & Economics",{"$f":"\"077\"","v":"077"},"Professional Golf Mgmt (PGM)","DC8004","ProfessionalGolfMgmt(PGM)",{"$f":"\"836998\"","v":"836998"},"ProfessionalGolfMgmt(PGM)",{"$f":"\"160441\"","v":"160441"},16,"Student Fees","Professional Golf Mgmt (PGM)",{"$f":"\"836\"","v":"836"},"Professional Golf Mgmt (PGM)",{"$f":"\"01INX\"","v":"01INX"},"Instruction",{"$f":"\"\"","v":""}]
["M004","College of Business & Economics",{"$f":"\"078\"","v":"078"},"Accounting","DBN230","Accounting Advisory Board",{"$f":"\"860993\"","v":"860993"},"Accounting Advisory Board",{"$f":"\"210529\"","v":"210529"},21,"Restricted Gifts","Accounting Advisory Board",{"$f":"\"860\"","v":"860"},"Accounting",{"$f":"\"01INX\"","v":"01INX"},"Instruction",{"$f":"\"\"","v":""}]
["M004","College of Business & Economics",{"$f":"\"076\"","v":"076"},"College of Business & Economics","DAN260","Wickstrand Curricular Enhancement",{"$f":"\"785983\"","v":"785983"},"Wickstrand Curricular Enhancement",{"$f":"\"210491\"","v":"210491"},21,"Restricted Gifts","Wickstrand Curricular Enhancement",{"$f":"\"785\"","v":"785"},"College of Business & Economics",{"$f":"\"01INX\"","v":"01INX"},"Instruction",{"$f":"\"\"","v":""}]
["M004","College of Business & Economics",{"$f":"\"076\"","v":"076"},"College of Business & Economics","DAN280","CBE - Student Charity Activity Fund",{"$f":"\"785980\"","v":"785980"},"CBE - Student Charity Activity Fund",{"$f":"\"210494\"","v":"210494"},21,"Restricted Gifts","CBE - Student Charity Activity Fund",{"$f":"\"785\"","v":"785"},"College of Business & Economics",{"$f":"\"03PSO\"","v":"03PSO"},"Public Service On Campus",{"$f":"\"\"","v":""}]
["M004","College of Business & Economics",{"$f":"\"079\"","v":"079"},"Business","KDU998","*I* FY16 VIP: Devezer",{"$f":"\"889986\"","v":"889986"},"FY16 VIP: Devezer",{"$f":"\"110000\"","v":"110000"},11,"Central Revenues and Allocations","Central Revenues and Allocations",{"$f":"\"889\"","v":"889"},"Business",{"$f":"\"01DRO\"","v":"01DRO"},"Departmental Research On Campus",{"$f":"\"\"","v":""}]
["M004","College of Business & Economics",{"$f":"\"076\"","v":"076"},"College of Business & Economics","DAN665","Thoreson Enhanced Learning",{"$f":"\"785950\"","v":"785950"},"Thoreson Enhanced Learning",{"$f":"\"210524\"","v":"210524"},21,"Restricted Gifts","Thoreson Enhanced Learning",{"$f":"\"785\"","v":"785"},"College of Business & Economics",{"$f":"\"01INX\"","v":"01INX"},"Instruction",{"$f":"\"\"","v":""}]
["M004","College of Business & Economics",{"$f":"\"077\"","v":"077"},"Professional Golf Mgmt (PGM)","DC7010","PGM Operating",{"$f":"\"836999\"","v":"836999"},"PGM Operating",{"$f":"\"160116\"","v":"160116"},16,"Student Fees","PGM Operating",{"$f":"\"836\"","v":"836"},"Professional Golf Mgmt (PGM)",{"$f":"\"06SSX\"","v":"06SSX"},"Student Services",{"$f":"\"\"","v":""}]
["M004","College of Business & Economics",{"$f":"\"078\"","v":"078"},"Accounting","DBN255","Accounting Faculty Fellowship",{"$f":"\"860990\"","v":"860990"},"Accounting Faculty Fellowship",{"$f":"\"210532\"","v":"210532"},21,"Restricted Gifts","Accounting Faculty Fellowship",{"$f":"\"860\"","v":"860"},"Accounting",{"$f":"\"01INX\"","v":"01INX"},"Instruction",{"$f":"\"\"","v":""}]
["M004","College of Business & Economics",{"$f":"\"076\"","v":"076"},"College of Business & Economics","DAN595","Business for Scientists Fund",{"$f":"\"785951\"","v":"785951"},"Business for Scientists Fund",{"$f":"\"210523\"","v":"210523"},21,"Restricted Gifts","Business for Scientists Fund",{"$f":"\"785\"","v":"785"},"College of Business & Economics",{"$f":"\"01INX\"","v":"01INX"},"Instruction",{"$f":"\"\"","v":""}]

{"sheet":"PVTBL","index":1,"n_rows":113,"n_cols":8,"rows_kept":113,"cut":false,"hidden":true,"merged":[]}
[]
[]
[]
[]
[]
[]
[]
[]
[]
[]
[]
[]
[]
[]
[]
[]
["NewIndex","NewIndexTitle","NewFund","NewFundTitle","NewOrgn","NewOrgnTitle","NewProg","NewProgTitle"]
["785940","Business & Economics Summer Session","100000","General Education","785","College of Business & Economics","01INX","Instruction"]
["785941","Soft Salary Gap","120017","Soft Salary Gap CEB","785","College of Business & Economics","01INX","Instruction"]
["785942","Stover's Deli","120469","Stover's Deli","785","College of Business & Economics","10AXX","Auxiliary Enterprises"]
["785943","CBE-Big Y","120470","CBE-Big Y","785","College of Business & Economics","01INX","Instruction"]
["785944","CBE Salary Reserve","100000","General Education","785","College of Business & Economics","01INX","Instruction"]
["785947","Business - General Instr Support","100000","General Education","785","College of Business & Economics","01INX","Instruction"]
["785948","CBE Dean Search","100000","General Education","785","College of Business & Economics","04DAX","Departmental Administration"]
["785949","Bus & Econ Administration","100000","General Education","785","College of Business & Economics","04DAX","Departmental Administration"]
["785950","Thoreson Enhanced Learning","210524","Thoreson Enhanced Learning","785","College of Business & Economics","01INX","Instruction"]
["785951","Business for Scientists Fund","210523","Business for Scientists Fund","785","College of Business & Economics","01INX","Instruction"]
["785952","CBE Junior Faculty Fellowship","210522","CBE Junior Faculty Fellowship","785","College of Business & Economics","09SCF","Scholarships & Fellowships"]
["785953","CBE Building Fund","210521","CBE Building Fund","785","College of Business & Economics","01UNA","Other Institutional Act & Unallow"]
["785954","VIEW Entrepreneurship Prog Gap Fund","210520","VIEW Entrepreneurship Prog Gap Fund","785","College of Business & Economics","01INX","Instruction"]
["785955","Michael, Gary & Meryle Kay Fac Fell","210519","Michael, Gary & Meryle Kay Fac Fell","785","College of Business & Economics","01INX","Instruction"]
["785956","CBE - Allen/Deloitte","210518","CBE - Allen/Deloitte","785","College of Business & Economics","01INX","Instruction"]
["785957","Reyes, Mario Faculty Fellowship End","210517","Reyes, Mario Faculty Fellowship End","785","College of Business & Economics","09SCF","Scholarships & Fellowships"]
["785958","Thiessen Fellow. Research Excel.","210516","Thiessen Fellow. Research Excel.","785","College of Business & Economics","09SCF","Scholarships & Fellowships"]
["785959","Barker Capital Mgmt & Trading Prog","210515","Barker Capital Mgmt & Trading Prog","785","College of Business & Economics","01INX","Instruction"]
["785960","CBE - PUEC Faculty Development Fund","210514","CBE - PUEC Faculty Development Fund","785","College of Business & Economics","01UNA","Other Institutional Act & Unallow"]
["785961","Dean D. Thornton Faculty Fellowship","210513","Dean D. Thornton Faculty Fellowship","785","College of Business & Economics","09SCF","Scholarships & Fellowships"]
["785962","Hawkins CBE Faculty Enhancement","210512","Hawkins CBE Faculty Enhancement","785","College of Business & Economics","07GAX","General Administration"]
["785963","Graue Program Operating Acct","210511","Graue Program Operating Acct","785","College of Business & Economics","01INX","Instruction"]
["785964","First Interstate Fac Dev Fund","210510","First Interstate Fac Dev Fund","785","College of Business & Economics","01UNA","Other Institutional Act & Unallow"]
["785965","Davis Enrichment Fund","210509","Davis Enrichment Fund","785","College of Business & Economics","01UNA","Other Institutional Act & Unallow"]
["785966","Slade Discretionary Fund-CBE","210508","Slade Discretionary Fund-CBE","785","College of Business & Economics","01UNA","Other Institutional Act & Unallow"]
["785967","Severn, Russell Discretionary Fund","210507","Severn, Russell Discretionary Fund","785","College of Business & Economics","01UNA","Other Institutional Act & Unallow"]
["785968","Young Bus & Econ Education Fd","210506","Young Bus & Econ Education Fd","785","College of Business & Economics","01INX","Instruction"]
["785969","Bus & Econ Unrest Endow","210505","Bus & Econ Unrest Endow","785","College of Business & Economics","01INX","Instruction"]
["785970","CBE Dean's Student Advisory Board","210504","CBE Dean's Student Advisory Board","785","College of Business & Economics","04ACS","All Academic Support except UNA"]
["785971","Elg, Annette & Brad Barker Endow","210503","Elg, Annette & Brad Barker Endow","785","College of Business & Economics","01INX","Instruction"]
["785972","First Security Bus & Econ","210502","First Security Bus & Econ","785","College of Business & Economics","01INX","Instruction"]
["785973","Monnett Intl Business Fund","210501","Monnett Intl Business Fund","785","College of Business & Economics","01UNA","Other Institutional Act & Unallow"]
["785974","McGowan B & E Discretion","210500","McGowan B & E Discretion","785","College of Business & Economics","01INX","Instruction"]
["785975","Smith Discretionary Fund","210499","Smith Discretionary Fund","785","College of Business & Economics","01UNA","Other Institutional Act & Unallow"]
["785976","Small Business Projects","210498","Small Business Projects","785","College of Business & Economics","04ACS","All Academic Support except UNA"]
["785977","Stoddard Dist Research Scholar","210497","Stoddard Dist Research Scholar","785","College of Business & Economics","01DRO","Departmental Research On Campus"]
["785978","Cd'A Mines Faculty Fellowship","210496","Cd'A Mines Faculty Fellowship","785","College of Business & Economics","01INX","Instruction"]
["785979","Espe Family Faculty Fellowship","210495","Espe Family Faculty Fellowship","785","College of Business & Economics","09SCF","Scholarships & Fellowships"]
["785980","CBE - Student Charity Activity Fund","210494","CBE - Student Charity Activity Fund","785","College of Business & Economics","03PSO","Public Service On Campus"]
["785981","Kendrick, David Memorial Award","210493","Kendrick, David Memorial Award","785","College of Business & Economics","01UNA","Other Institutional Act & Unallow"]
["785982","VIEW Program","210492","VIEW Program","785","College of Business & Economics","03PSO","Public Service On Campus"]
["785983","Wickstrand Curricular Enhancement","210491","Wickstrand Curricular Enhancement","785","College of Business & Economics","01INX","Instruction"]
["785984","Bennett, Philo Prize","210490","Bennett, Philo Prize","785","College of Business & Economics","01UNA","Other Institutional Act & Unallow"]
["785985","CBE Entrepreneurship Fund - Kluth","210489","CBE Entrepreneurship Fund - Kluth","785","College of Business & Economics","01INX","Instruction"]
["785986","CBE Development Fund","210488","CBE Development Fund","785","College of Business & Economics","01INX","Instruction"]
["785987","Davis, A. D. Awards","210487","Davis, A. D. Awards","785","College of Business & Economics","01UNA","Other Institutional Act & Unallow"]
["785988","Chair in Business Enterprise","210486","Chair in Business Enterprise","785","College of Business & Economics","01INX","Instruction"]
["785989","McCarthy Communication Lab","210485","McCarthy Communication Lab","785","College of Business & Economics","01INX","Instruction"]
["785990","Unrestricted Gifts-Bus & Econ","210484","Unrestricted Gifts-Bus & Econ","785","College of Business & Economics","01UNA","Other Institutional Act & Unallow"]
["785991","First Security Fdn - Library","211105","First Security Fdn - Library","785","College of Business & Economics","01INX","Instruction"]
["785992","Integrated Business Core Curriculum","210483","Integrated Business Core Curriculum","785","College of Business & Economics","01INX","Instruction"]
["785993","Alsaker Family Fellowship","210482","Alsaker Family Fellowship","785","College of Business & Economics","09SCF","Scholarships & Fellowships"]
["785994","Strategic Management","160439","Strategic Management","785","College of Business & Economics","01INX","Instruction"]
["785995","CBEStudentCourseFees","160113","CBE Student Course Fees","785","College of Business & Economics","01INX","Instruction"]
["785996","Infrastructure, Supplies, Tech Exp","160112","Infrastructure, Supplies, Tech Exp","785","College of Business & Economics","04ACS","All Academic Support except UNA"]
["785997","Advising Operating","160111","Advising Operating","785","College of Business & Economics","01INX","Instruction"]
["785998","Bus & Econ Admin General Support","160110","Bus & Econ Admin General Support","785","College of Business & Economics","01INX","Instruction"]
["785999","Bus&EconEarnedOverhead","121235","F&A Return - Bus & Econ","785","College of Business & Economics","01DRO","Departmental Research On Campus"]
["823997","Public Utilities Executive Course","120477","Public Utilities Executive Course","823","Executive Education","01INX","Instruction"]
["823998","Ctr for Bus Dev & Entrepreneurship","100000","General Education","823","Executive Education","03PSO","Public Service On Campus"]
["823999","Executive MBA","160115","Executive MBA","823","Executive Education","01INX","Instruction"]
["836994","Prof Golf Mgmt (PGM) Operating","120472","Prof Golf Mgmt (PGM) Operating","836","Professional Golf Mgmt (PGM)","01INX","Instruction"]
["836995","Professional Golf Mgmt (PGM)","120475","Professional Golf Mgmt (PGM)","836","Professional Golf Mgmt (PGM)","01INX","Instruction"]
["836996","Professional Golf Mgmt (PGM)","100000","General Education","836","Professional Golf Mgmt (PGM)","01INX","Instruction"]
["836997","PGA Golf Management Program Gifts","210536","PGA Golf Management Program","836","Professional Golf Mgmt (PGM)","01INX","Instruction"]
["836998","ProfessionalGolfMgmt(PGM)","160441","Professional Golf Mgmt (PGM)","836","Professional Golf Mgmt (PGM)","01INX","Instruction"]
["836999","PGM Operating","160116","PGM Operating","836","Professional Golf Mgmt (PGM)","06SSX","Student Services"]
["860986","Independent Study Crse","121466","Independent Study Crse","860","Accounting","01INX","Instruction"]
["860987","Accounting","100000","General Education","860","Accounting","01INX","Instruction"]
["860988","Presnell Accounting Fund","210534","Presnell Accounting Fund","860","Accounting","01UNA","Other Institutional Act & Unallow"]
["860989","Nelson, Ann & Dale Acct Fellowship","210533","Nelson, Ann & Dale Acct Fellowship","860","Accounting","01INX","Instruction"]
["860990","Accounting Faculty Fellowship","210532","Accounting Faculty Fellowship","860","Accounting","01INX","Instruction"]
["860991","Moss Adams Accounting Faculty Fello","210531","Moss Adams Accounting Faculty Fello","860","Accounting","01INX","Instruction"]
["860992","Allen Faculty Supplement- Acct","210530","Allen Faculty Supplement- Acct","860","Accounting","07GAX","General Administration"]
["860993","Accounting Advisory Board","210529","Accounting Advisory Board","860","Accounting","01INX","Instruction"]
["860994","Acct Advisory Board Fellowship","210528","Acct Advisory Board Fellowship","860","Accounting","09SCF","Scholarships & Fellowships"]
["860995","Unrestricted Gifts","210527","Unrestricted Gifts - Accounting","860","Accounting","01UNA","Other Institutional Act & Unallow"]
["860996","Acct - Beta Alpha Psi","210526","Acct - Beta Alpha Psi","860","Accounting","06SSX","Student Services"]
["860997","Steele Accounting Professorship","210525","Steele Accounting Professorship","860","Accounting","01UNA","Other Institutional Act & Unallow"]
["860998","Accounting Lab and Course Fee","160440","Acctng Lab & Crse Fee","860","Accounting","01INX","Instruction"]
["860999","Accounting Operating","160114","Accounting Operating","860","Accounting","01INX","Instruction"]
["889986","FY16 VIP: Devezer","110000","Central Revenues and Allocations","889","Business","01DRO","Departmental Research On Campus"]
["889987","Econ272On-lineTextFee","160444","Econ 272 On-line Text Fee","889","Business","01INX","Instruction"]
["889988","OM Experiential Learning","120474","OM Experiential Learning","889","Business","01INX","Instruction"]
["889989","CASE Editorship Acct","120471","CASE Editorship Acct","889","Business","01DRF","Departmental Research Off Campus"]
["889990","Vandal Solutions","120473","Vandal Solutions","889","Business","01INX","Instruction"]
["889991","Business Dept Misc","120476","Business Dept Misc","889","Business","01UNA","Other Institutional Act & Unallow"]
["889992","Business","100000","General Education","889","Business","01INX","Instruction"]
["889993","Dept of Bus Endowment Earnings","210538","Dept of Bus Endowment Earnings","889","Business","01UNA","Other Institutional Act & Unallow"]
["889994","Process Mgmt & Improvement Center","210537","Process Mgmt & Improvement Center","889","Business","01INX","Instruction"]
["889995","Business Development","210535","Business Development","889","Business","04ACS","All Academic Support except UNA"]
["889996","IDHW SHIP project","221078","IDHW SHIP project","889","Business","02ORF","Organized Research Off Campus"]
["889997","Multiple: Metlen Student Educ Act","220505","Multiple: Metlen Student Educ Act","889","Business","01IGO","Instruction Grants On Campus"]
["889998","Micron S&OP Process - SEA BUS456","220378","Micron - SEA BUS456","889","Business","01IGO","Instruction Grants On Campus"]
["889999","Business Operating","160117","Business Operating","889","Business","01INX","Instruction"]
["Grand Total"]

{"sheet":"The CBE","index":2,"n_rows":120,"n_cols":9,"rows_kept":120,"cut":false,"hidden":false,"merged":[]}
[]
[]
[]
[]
[]
[]
[]
[]
[]
[]
[]
[]
[]
[]
[]
[]
[]
[]
[]
[]
[]
[]
[]
[]
[null,"NewIndexTitle","NewIndex","NewFund","NewFundTitle","NewOrgn","NewOrgnTitle","NewProg","NewProgTitle"]
[null,"Accounting","860987","100000","General Education","860","Accounting","01INX","Instruction"]
[null,"Accounting Advisory Board","860993","210529","Accounting Advisory Board","860","Accounting","01INX","Instruction"]
[null,"Accounting Faculty Fellowship","860990","210532","Accounting Faculty Fellowship","860","Accounting","01INX","Instruction"]
[null,"Accounting Lab and Course Fee","860998","160440","Acctng Lab & Crse Fee","860","Accounting","01INX","Instruction"]
[null,"Accounting Operating","860999","160114","Accounting Operating","860","Accounting","01INX","Instruction"]
[null,"Acct - Beta Alpha Psi","860996","210526","Acct - Beta Alpha Psi","860","Accounting","06SSX","Student Services"]
[null,"Acct Advisory Board Fellowship","860994","210528","Acct Advisory Board Fellowship","860","Accounting","09SCF","Scholarships & Fellowships"]
[null,"Advising Operating","785997","160111","Advising Operating","785","College of Business & Economics","01INX","Instruction"]
[null,"Allen Faculty Supplement- Acct","860992","210530","Allen Faculty Supplement- Acct","860","Accounting","07GAX","General Administration"]
[null,"Alsaker Family Fellowship","785993","210482","Alsaker Family Fellowship","785","College of Business & Economics","09SCF","Scholarships & Fellowships"]
[null,"Barker Capital Mgmt & Trading Prog","785959","210515","Barker Capital Mgmt & Trading Prog","785","College of Business & Economics","01INX","Instruction"]
[null,"Bennett, Philo Prize","785984","210490","Bennett, Philo Prize","785","College of Business & Economics","01UNA","Other Institutional Act & Unallow"]
[null,"Bus & Econ Admin General Support","785998","160110","Bus & Econ Admin General Support","785","College of Business & Economics","01INX","Instruction"]
[null,"Bus & Econ Administration","785949","100000","General Education","785","College of Business & Economics","04DAX","Departmental Administration"]
[null,"Bus & Econ Unrest Endow","785969","210505","Bus & Econ Unrest Endow","785","College of Business & Economics","01INX","Instruction"]
[null,"Bus&EconEarnedOverhead","785999","121235","F&A Return - Bus & Econ","785","College of Business & Economics","01DRO","Departmental Research On Campus"]
[null,"Business","889992","100000","General Education","889","Business","01INX","Instruction"]
[null,"Business - General Instr Support","785947","100000","General Education","785","College of Business & Economics","01INX","Instruction"]
[null,"Business & Economics Summer Session","785940","100000","General Education","785","College of Business & Economics","01INX","Instruction"]
[null,"Business Dept Misc","889991","120476","Business Dept Misc","889","Business","01UNA","Other Institutional Act & Unallow"]
[null,"Business Development","889995","210535","Business Development","889","Business","04ACS","All Academic Support except UNA"]
[null,"Business for Scientists Fund","785951","210523","Business for Scientists Fund","785","College of Business & Economics","01INX","Instruction"]
[null,"Business Operating","889999","160117","Business Operating","889","Business","01INX","Instruction"]
[null,"CASE Editorship Acct","889989","120471","CASE Editorship Acct","889","Business","01DRF","Departmental Research Off Campus"]
[null,"CBE - Allen/Deloitte","785956","210518","CBE - Allen/Deloitte","785","College of Business & Economics","01INX","Instruction"]
[null,"CBE - PUEC Faculty Development Fund","785960","210514","CBE - PUEC Faculty Development Fund","785","College of Business & Economics","01UNA","Other Institutional Act & Unallow"]
[null,"CBE - Student Charity Activity Fund","785980","210494","CBE - Student Charity Activity Fund","785","College of Business & Economics","03PSO","Public Service On Campus"]
[null,"CBE Building Fund","785953","210521","CBE Building Fund","785","College of Business & Economics","01UNA","Other Institutional Act & Unallow"]
[null,"CBE Dean Search","785948","100000","General Education","785","College of Business & Economics","04DAX","Departmental Administration"]
[null,"CBE Dean's Student Advisory Board","785970","210504","CBE Dean's Student Advisory Board","785","College of Business & Economics","04ACS","All Academic Support except UNA"]
[null,"CBE Development Fund","785986","210488","CBE Development Fund","785","College of Business & Economics","01INX","Instruction"]
[null,"CBE Entrepreneurship Fund - Kluth","785985","210489","CBE Entrepreneurship Fund - Kluth","785","College of Business & Economics","01INX","Instruction"]
[null,"CBE Junior Faculty Fellowship","785952","210522","CBE Junior Faculty Fellowship","785","College of Business & Economics","09SCF","Scholarships & Fellowships"]
[null,"CBE Salary Reserve","785944","100000","General Education","785","College of Business & Economics","01INX","Instruction"]
[null,"CBE-Big Y","785943","120470","CBE-Big Y","785","College of Business & Economics","01INX","Instruction"]
[null,"CBEStudentCourseFees","785995","160113","CBE Student Course Fees","785","College of Business & Economics","01INX","Instruction"]
[null,"Cd'A Mines Faculty Fellowship","785978","210496","Cd'A Mines Faculty Fellowship","785","College of Business & Economics","01INX","Instruction"]
[null,"Chair in Business Enterprise","785988","210486","Chair in Business Enterprise","785","College of Business & Economics","01INX","Instruction"]
[null,"Ctr for Bus Dev & Entrepreneurship","823998","100000","General Education","823","Executive Education","03PSO","Public Service On Campus"]
[null,"Davis Enrichment Fund","785965","210509","Davis Enrichment Fund","785","College of Business & Economics","01UNA","Other Institutional Act & Unallow"]
[null,"Davis, A. D. Awards","785987","210487","Davis, A. D. Awards","785","College of Business & Economics","01UNA","Other Institutional Act & Unallow"]
[null,"Dean D. Thornton Faculty Fellowship","785961","210513","Dean D. Thornton Faculty Fellowship","785","College of Business & Economics","09SCF","Scholarships & Fellowships"]
[null,"Dept of Bus Endowment Earnings","889993","210538","Dept of Bus Endowment Earnings","889","Business","01UNA","Other Institutional Act & Unallow"]
[null,"Econ272On-lineTextFee","889987","160444","Econ 272 On-line Text Fee","889","Business","01INX","Instruction"]
[null,"Elg, Annette & Brad Barker Endow","785971","210503","Elg, Annette & Brad Barker Endow","785","College of Business & Economics","01INX","Instruction"]
[null,"Espe Family Faculty Fellowship","785979","210495","Espe Family Faculty Fellowship","785","College of Business & Economics","09SCF","Scholarships & Fellowships"]
[null,"Executive MBA","823999","160115","Executive MBA","823","Executive Education","01INX","Instruction"]
[null,"First Interstate Fac Dev Fund","785964","210510","First Interstate Fac Dev Fund","785","College of Business & Economics","01UNA","Other Institutional Act & Unallow"]
[null,"First Security Bus & Econ","785972","210502","First Security Bus & Econ","785","College of Business & Economics","01INX","Instruction"]
[null,"First Security Fdn - Library","785991","211105","First Security Fdn - Library","785","College of Business & Economics","01INX","Instruction"]
[null,"FY16 VIP: Devezer","889986","110000","Central Revenues and Allocations","889","Business","01DRO","Departmental Research On Campus"]
[null,"Graue Program Operating Acct","785963","210511","Graue Program Operating Acct","785","College of Business & Economics","01INX","Instruction"]
[null,"Hawkins CBE Faculty Enhancement","785962","210512","Hawkins CBE Faculty Enhancement","785","College of Business & Economics","07GAX","General Administration"]
[null,"IDHW SHIP project","889996","221078","IDHW SHIP project","889","Business","02ORF","Organized Research Off Campus"]
[null,"Independent Study Crse","860986","121466","Independent Study Crse","860","Accounting","01INX","Instruction"]
[null,"Infrastructure, Supplies, Tech Exp","785996","160112","Infrastructure, Supplies, Tech Exp","785","College of Business & Economics","04ACS","All Academic Support except UNA"]
[null,"Integrated Business Core Curriculum","785992","210483","Integrated Business Core Curriculum","785","College of Business & Economics","01INX","Instruction"]
[null,"Kendrick, David Memorial Award","785981","210493","Kendrick, David Memorial Award","785","College of Business & Economics","01UNA","Other Institutional Act & Unallow"]
[null,"McCarthy Communication Lab","785989","210485","McCarthy Communication Lab","785","College of Business & Economics","01INX","Instruction"]
[null,"McGowan B & E Discretion","785974","210500","McGowan B & E Discretion","785","College of Business & Economics","01INX","Instruction"]
[null,"Michael, Gary & Meryle Kay Fac Fell","785955","210519","Michael, Gary & Meryle Kay Fac Fell","785","College of Business & Economics","01INX","Instruction"]
[null,"Micron S&OP Process - SEA BUS456","889998","220378","Micron - SEA BUS456","889","Business","01IGO","Instruction Grants On Campus"]
[null,"Monnett Intl Business Fund","785973","210501","Monnett Intl Business Fund","785","College of Business & Economics","01UNA","Other Institutional Act & Unallow"]
[null,"Moss Adams Accounting Faculty Fello","860991","210531","Moss Adams Accounting Faculty Fello","860","Accounting","01INX","Instruction"]
[null,"Multiple: Metlen Student Educ Act","889997","220505","Multiple: Metlen Student Educ Act","889","Business","01IGO","Instruction Grants On Campus"]
[null,"Nelson, Ann & Dale Acct Fellowship","860989","210533","Nelson, Ann & Dale Acct Fellowship","860","Accounting","01INX","Instruction"]
[null,"OM Experiential Learning","889988","120474","OM Experiential Learning","889","Business","01INX","Instruction"]
[null,"PGA Golf Management Program Gifts","836997","210536","PGA Golf Management Program","836","Professional Golf Mgmt (PGM)","01INX","Instruction"]
[null,"PGM Operating","836999","160116","PGM Operating","836","Professional Golf Mgmt (PGM)","06SSX","Student Services"]
[null,"Presnell Accounting Fund","860988","210534","Presnell Accounting Fund","860","Accounting","01UNA","Other Institutional Act & Unallow"]
[null,"Process Mgmt & Improvement Center","889994","210537","Process Mgmt & Improvement Center","889","Business","01INX","Instruction"]
[null,"Prof Golf Mgmt (PGM) Operating","836994","120472","Prof Golf Mgmt (PGM) Operating","836","Professional Golf Mgmt (PGM)","01INX","Instruction"]
[null,"Professional Golf Mgmt (PGM)","836995","120475","Professional Golf Mgmt (PGM)","836","Professional Golf Mgmt (PGM)","01INX","Instruction"]
[null,"Professional Golf Mgmt (PGM)","836996","100000","General Education","836","Professional Golf Mgmt (PGM)","01INX","Instruction"]
[null,"ProfessionalGolfMgmt(PGM)","836998","160441","Professional Golf Mgmt (PGM)","836","Professional Golf Mgmt (PGM)","01INX","Instruction"]
[null,"Public Utilities Executive Course","823997","120477","Public Utilities Executive Course","823","Executive Education","01INX","Instruction"]
[null,"Reyes, Mario Faculty Fellowship End","785957","210517","Reyes, Mario Faculty Fellowship End","785","College of Business & Economics","09SCF","Scholarships & Fellowships"]
[null,"Severn, Russell Discretionary Fund","785967","210507","Severn, Russell Discretionary Fund","785","College of Business & Economics","01UNA","Other Institutional Act & Unallow"]
[null,"Slade Discretionary Fund-CBE","785966","210508","Slade Discretionary Fund-CBE","785","College of Business & Economics","01UNA","Other Institutional Act & Unallow"]
[null,"Small Business Projects","785976","210498","Small Business Projects","785","College of Business & Economics","04ACS","All Academic Support except UNA"]
[null,"Smith Discretionary Fund","785975","210499","Smith Discretionary Fund","785","College of Business & Economics","01UNA","Other Institutional Act & Unallow"]
[null,"Soft Salary Gap","785941","120017","Soft Salary Gap CEB","785","College of Business & Economics","01INX","Instruction"]
[null,"Steele Accounting Professorship","860997","210525","Steele Accounting Professorship","860","Accounting","01UNA","Other Institutional Act & Unallow"]
[null,"Stoddard Dist Research Scholar","785977","210497","Stoddard Dist Research Scholar","785","College of Business & Economics","01DRO","Departmental Research On Campus"]
[null,"Stover's Deli","785942","120469","Stover's Deli","785","College of Business & Economics","10AXX","Auxiliary Enterprises"]
[null,"Strategic Management","785994","160439","Strategic Management","785","College of Business & Economics","01INX","Instruction"]
[null,"Thiessen Fellow. Research Excel.","785958","210516","Thiessen Fellow. Research Excel.","785","College of Business & Economics","09SCF","Scholarships & Fellowships"]
[null,"Thoreson Enhanced Learning","785950","210524","Thoreson Enhanced Learning","785","College of Business & Economics","01INX","Instruction"]
[null,"Unrestricted Gifts","860995","210527","Unrestricted Gifts - Accounting","860","Accounting","01UNA","Other Institutional Act & Unallow"]
[null,"Unrestricted Gifts-Bus & Econ","785990","210484","Unrestricted Gifts-Bus & Econ","785","College of Business & Economics","01UNA","Other Institutional Act & Unallow"]
[null,"Vandal Solutions","889990","120473","Vandal Solutions","889","Business","01INX","Instruction"]
[null,"VIEW Entrepreneurship Prog Gap Fund","785954","210520","VIEW Entrepreneurship Prog Gap Fund","785","College of Business & Economics","01INX","Instruction"]
[null,"VIEW Program","785982","210492","VIEW Program","785","College of Business & Economics","03PSO","Public Service On Campus"]
[null,"Wickstrand Curricular Enhancement","785983","210491","Wickstrand Curricular Enhancement","785","College of Business & Economics","01INX","Instruction"]
[null,"Young Bus & Econ Education Fd","785968","210506","Young Bus & Econ Education Fd","785","College of Business & Economics","01INX","Instruction"]